fUST/lending_fUST_20251010
["ID","MTS","AMOUNT","RATE_DAILY","PERIOD"]
[390545810,1760080252139,-500.0,0.0001726,2]
[390545811,1760080252148,-500.0,0.0001726,2]
[390545812,1760080252157,-500.0,0.0001726,2]
[390545813,1760080252166,-227.8891446,0.0001726,2]
[390545814,1760080252175,-356.3752103,0.0001726,2]
[390545815,1760080252184,-1270.86,0.0001726,2]
[390545816,1760080252194,-500.0,0.0001726,2]
[390545817,1760080252203,-500.0,0.0001726,2]
[390545818,1760080252212,-260.75187693,0.0001726,2]
[390545819,1760080252222,-500.0,0.0001726,2]
[390545820,1760080252231,-500.0,0.0001726,2]
[390545821,1760080252240,-500.0,0.0001726,2]
[390545822,1760080252249,-834.28,0.0001726,2]
[390545823,1760080252258,-849.48,0.0001726,2]
[390545824,1760080252267,-721.47,0.0001726,2]
[390545825,1760080252276,-691.41,0.0001726,2]
[390545826,1760080252285,-502.97428733,0.0001726,2]
[390545827,1760080252295,-500.0,0.0001726,2]
[390545828,1760080252303,-500.0,0.0001726,2]
[390545829,1760080252313,-504.194854,0.0001726,2]
[390545830,1760080252322,-1144.45,0.0001726,2]
[390545831,1760080252332,-500.0,0.0001726,2]
[390545832,1760080252341,-500.0,0.0001726,2]
[390545833,1760080252349,-500.0,0.0001726,2]
[390545834,1760080252358,-500.0,0.0001726,2]
[390545835,1760080252367,-500.0,0.0001726,2]
[390545836,1760080252376,-6633.61,0.0001726,2]
[390545837,1760080252385,-500.0,0.0001726,2]
[390545838,1760080252394,-500.0,0.0001726,2]
[390545839,1760080252404,-500.0,0.0001726,2]
[390545840,1760080252413,-500.0,0.0001726,2]
[390545841,1760080252423,-500.0,0.0001726,2]
[390545842,1760080252432,-500.0,0.0001726,2]
[390545843,1760080252442,-1166.12,0.0001726,2]
[390545844,1760080252451,-500.0,0.0001726,2]
[390545845,1760080252461,-500.0,0.0001726,2]
[390545846,1760080252470,-621.3,0.0001726,2]
[390545847,1760080252480,-500.0,0.0001726,2]
[390545848,1760080252494,-500.0,0.0001726,2]
[390545849,1760080252503,-500.0,0.0001726,2]
[390545850,1760080252512,-1833.98,0.0001726,2]
[390545851,1760080252522,-500.0,0.0001726,2]
[390545852,1760080252532,-1548.81,0.0001726,2]
[390545853,1760080252542,-500.0,0.0001726,2]
[390545854,1760080252551,-500.0,0.0001726,2]
[390545855,1760080252562,-500.0,0.0001726,2]
[390545856,1760080252571,-500.0,0.0001726,2]
[390545857,1760080252581,-523.93930145,0.0001726,2]
[390545858,1760080252590,-500.0,0.0001726,2]
[390545859,1760080252599,-725.14,0.0001726,2]
[390545860,1760080252608,-500.0,0.0001726,2]
[390545861,1760080252617,-3197.74,0.0001726,2]
[390545862,1760080252627,-5152.53,0.0001726,2]
[390545863,1760080252636,-826.42,0.0001726,2]
[390545864,1760080252645,-500.0,0.0001726,2]
[390545865,1760080252654,-1504.67,0.0001726,2]
[390545866,1760080252664,-500.0,0.0001726,2]
[390545867,1760080252673,-4478.67,0.0001726,2]
[390545868,1760080252682,-500.0,0.0001726,2]
[390545869,1760080252693,-500.0,0.0001726,2]
[390545870,1760080252703,-500.0,0.0001726,2]
[390545871,1760080252712,-500.0,0.0001726,2]
[390545872,1760080252721,-151.859235,0.0001726,2]
[390545873,1760080252731,-500.0,0.0001726,2]
[390545874,1760080252740,-831.37,0.0001726,2]
[390545875,1760080252751,-500.0,0.0001726,2]
[390545876,1760080252761,-151.418394,0.0001726,2]
[390545877,1760080252770,-304.003014,0.0001726,2]
[390545878,1760080252780,-151.0,0.0001726,2]
[390545879,1760080252789,-304.003014,0.0001726,2]
[390545880,1760080252799,-755.85,0.0001726,2]
[390545881,1760080252810,-304.003014,0.0001726,2]
[390545882,1760080252820,-748.81,0.0001726,2]
[390545883,1760080252831,-304.003014,0.0001726,2]
[390545884,1760080252840,-500.0,0.0001726,2]
[390545885,1760080252850,-849.63,0.0001726,2]
[390545886,1760080252859,-2055.66,0.0001726,2]
[390545887,1760080252870,-824.93,0.0001726,2]
[390545888,1760080252879,-1540.61,0.0001726,2]
[390545889,1760080252889,-500.0,0.0001726,2]
[390545890,1760080252899,-500.0,0.0001726,2]
[390545891,1760080252909,-544.75,0.0001726,2]
[390545892,1760080252918,-500.0,0.0001726,2]
[390545893,1760080252927,-1049.77,0.0001726,2]
[390545894,1760080252937,-500.0,0.0001726,2]
[390545895,1760080252947,-500.0,0.0001726,2]
[390545896,1760080252957,-500.0,0.0001726,2]
[390545897,1760080252966,-500.0,0.0001726,2]
[390545898,1760080252975,-151.0,0.0001726,2]
[390545899,1760080252984,-500.0,0.0001726,2]
[390545900,1760080252994,-151.0,0.0001726,2]
[390545901,1760080253003,-1405.83,0.0001726,2]
[390545902,1760080253013,-151.0,0.0001726,2]
[390545903,1760080253023,-151.0,0.0001726,2]
[390545904,1760080253032,-500.0,0.0001726,2]
[390545905,1760080253042,-3146.69,0.0001726,2]
[390545906,1760080253050,-500.0,0.0001726,2]
[390545907,1760080253060,-1222.66,0.0001726,2]
[390545908,1760080253069,-151.0,0.0001726,2]
[390545909,1760080253078,-1001.84,0.0001726,2]
[390545910,1760080253088,-24.47819119,0.0001726,2]
[390545911,1760080253583,-666.0,0.00015605,2]
[390545912,1760080253593,-500.0,0.00016438,2]
[390545913,1760080253602,-500.0,0.00016712,2]
[390545914,1760080253611,-500.0,0.00016986,2]
[390545915,1760080253620,-411.0,0.00017079,2]
[390545916,1760080253630,-126.52180881,0.0001726,2]
[390545917,1760080253639,-500.0,0.0001726,2]
[390545918,1760080253648,-500.0,0.0001726,2]
[390545919,1760080253658,-500.0,0.0001726,2]
[390545920,1760080253667,-121.47819119,0.0001726,2]
[390545921,1760080362173,154.882853,0.00024,30]
[390545923,1760080412181,153.717767,0.00024,30]
[390545924,1760080412604,153.717767,0.00024,30]
[390545925,1760080413025,153.717767,0.00024,30]
[390545926,1760080433102,500.0,0.00029605,60]
[390545927,1760080433381,224.20994212,0.00029605,60]
[390545928,1760080454736,1000.0,0.00027397,120]
[390545930,1760080541994,409.0,0.00024957,120]
[390545931,1760080543268,409.0,0.00026205,120]
[390545932,1760080544555,409.0,0.00027515,120]
[390545933,1760080561767,426.92899373,0.00028767,120]
[390545937,1760080795927,151.01739894,0.0002958,120]
[390545939,1760080832387,164.0,0.00027695,120]
[390545941,1760080855853,506.74,0.00015571,2]
[390545944,1760081010026,153.717768,0.00024,30]
[390545945,1760081010433,153.717768,0.00024,30]
[390545946,1760081010862,153.717768,0.00024,30]
[390545947,1760081021005,154.882853,0.00024,30]
[390545951,1760081088062,1000.0,0.00027397,120]
[390545962,1760081135169,213.0,0.00024676,120]
[390545963,1760081136362,213.0,0.0002591,120]
[390545964,1760081137564,213.0,0.00027206,120]
[390545965,1760081138775,213.0,0.00028566,120]
[390545968,1760081267922,269.37129,0.00015433,2]
[390545972,1760081406518,2003.35248678,0.00029596,120]
[390545973,1760081415711,1000.0,0.00027397,120]
[390546005,1760081432703,177.0,0.00025212,120]
[390546031,1760081434192,177.0,0.00026473,120]
[390546032,1760081435778,177.0,0.00027796,120]
[390546063,1760081438410,-158.38369845,0.00015818,2]
[390546065,1760081438420,-352.72829847,0.00015818,2]
[390546067,1760081438429,-207.0,0.00015918,3]
[390546069,1760081438439,-180.0,0.00016,4]
[390546071,1760081438448,-710.8069134,0.00016338,2]
[390546073,1760081438458,-171.20339965,0.00016338,2]
[390546075,1760081438467,-405.63754324,0.00016418,2]
[390546077,1760081438477,-153.46803805,0.00016437,2]
[390546079,1760081438485,-300.0,0.00016437,2]
[390546081,1760081438495,-508.343,0.00016438,2]
[390546082,1760081438504,-1000.0,0.00016438,2]
[390546085,1760081438515,-1000.0,0.00016438,2]
[390546086,1760081438524,-455.183,0.00016438,2]
[390546088,1760081438534,-500.0,0.00016438,2]
[390546090,1760081438544,-500.0,0.00016438,2]
[390546092,1760081438553,-500.0,0.00016438,2]
[390546094,1760081438563,-2000.0,0.00016438,2]
[390546097,1760081438573,-2000.0,0.00016438,2]
[390546099,1760081438582,-2000.0,0.00016438,2]
[390546100,1760081438591,-2000.0,0.00016438,2]
[390546102,1760081438601,-2000.0,0.00016438,2]
[390546104,1760081438610,-2000.0,0.00016438,2]
[390546107,1760081438620,-2000.0,0.00016438,2]
[390546109,1760081438630,-2000.0,0.00016438,2]
[390546111,1760081438639,-2000.0,0.00016438,2]
[390546113,1760081438649,-2000.0,0.00016438,2]
[390546115,1760081438659,-2000.0,0.00016438,2]
[390546117,1760081438668,-2000.0,0.00016438,2]
[390546119,1760081438677,-2000.0,0.00016438,2]
[390546120,1760081438686,-712.21032638,0.00016438,2]
[390551021,1760081504041,800.0,0.00028767,120]
[390551022,1760081510143,800.0,0.00028767,120]
[390551023,1760081517039,800.0,0.00028767,120]
[390551025,1760081524059,800.0,0.00028767,120]
[390551026,1760081539866,800.0,0.00028767,120]
[390551027,1760081567591,800.0,0.00028767,120]
[390551028,1760081568194,154.882854,0.00024,30]
[390551029,1760081610504,153.717768,0.00024,30]
[390551030,1760081610920,153.717768,0.00024,30]
[390551031,1760081611358,153.717768,0.00024,30]
[390551033,1760081624997,154.882854,0.0002352,30]
[390551034,1760081628662,25000.0,0.00023288,30]
[390551035,1760081737730,244.0,0.00022935,120]
[390551037,1760081738997,244.0,0.00024082,120]
[390551044,1760081740264,244.0,0.00025286,120]
[390551048,1760081741525,244.0,0.0002655,120]
[390551049,1760081742032,1000.0,0.00027397,120]
[390551050,1760081743045,244.0,0.00027878,120]
[390551065,1760081817794,1198.23,0.00028,120]
[390551066,1760081844973,1119.05486592,0.00029596,120]
[390551067,1760081933888,223.538189,0.0001541,2]
[390551069,1760082029613,184.0,0.00025745,120]
[390551070,1760082030874,184.0,0.00027032,120]
[390551071,1760082032070,184.0,0.00028383,120]
[390551072,1760082065752,1000.0,0.00027397,120]
[390551829,1760082174388,-452.5599754,0.00015696,2]
[390551830,1760082174412,-347.16371951,0.00015696,2]
[390551831,1760082174436,-208.55715187,0.00015863,3]
[390551832,1760082174459,-1393.85494853,0.00016227,2]
[390551833,1760082174484,-399.23827743,0.00016296,2]
[390551834,1760082174507,-657.4963949,0.00016338,2]
[390551835,1760082174530,-798.82,0.00016428,3]
[390551836,1760082174553,-300.0,0.00016437,2]
[390551837,1760082174576,-1287.78967362,0.00016438,2]
[390551838,1760082174599,-2000.0,0.00016438,2]
[390551839,1760082174621,-2000.0,0.00016438,2]
[390551840,1760082174644,-2000.0,0.00016438,2]
[390551841,1760082174666,-2000.0,0.00016438,2]
[390551842,1760082174689,-2000.0,0.00016438,2]
[390551843,1760082174712,-2000.0,0.00016438,2]
[390551844,1760082174735,-2000.0,0.00016438,2]
[390551845,1760082174759,-2000.0,0.00016438,2]
[390551846,1760082174782,-2000.0,0.00016438,2]
[390551847,1760082174805,-2000.0,0.00016438,2]
[390551848,1760082174829,-2000.0,0.00016438,2]
[390551849,1760082174852,-2000.0,0.00016438,2]
[390551850,1760082174875,-2000.0,0.00016438,2]
[390551851,1760082174897,-2000.0,0.00016438,2]
[390551852,1760082174921,-2000.0,0.00016438,2]
[390551853,1760082174945,-1712.542,0.00016438,2]
[390551854,1760082174968,-500.0,0.00016438,2]
[390551855,1760082174991,-232.65951247,0.00016438,2]
[390551856,1760082175014,-500.0,0.00016438,2]
[390551857,1760082175037,-500.0,0.00016438,2]
[390551858,1760082175062,-500.0,0.00016438,2]
[390551859,1760082175086,-500.0,0.00016438,2]
[390551860,1760082175109,-500.0,0.00016438,2]
[390551861,1760082175132,-500.0,0.00016438,2]
[390551862,1760082175155,-500.0,0.00016438,2]
[390551863,1760082175178,-501.09598001,0.00016438,2]
[390551864,1760082175201,-503.05416711,0.00016438,2]
[390551865,1760082175224,-500.0,0.00016438,2]
[390551866,1760082175248,-606.37,0.00016438,2]
[390551867,1760082175272,-198.76569405,0.00016438,2]
[390551868,1760082175294,-500.0,0.00016438,2]
[390551869,1760082175318,-501.33157775,0.00016438,2]
[390551870,1760082175341,-500.0,0.00016438,2]
[390551871,1760082175376,-501.57742464,0.00016438,2]
[390551872,1760082175408,-500.0,0.00016438,2]
[390551873,1760082175434,-500.0,0.00016438,2]
[390551874,1760082175459,-500.0,0.00016438,2]
[390551875,1760082175485,-504.57924601,0.00016438,2]
[390551876,1760082175511,-500.0,0.00016438,2]
[390551877,1760082175535,-500.0,0.00016438,2]
[390551878,1760082175560,-500.0,0.00016438,2]
[390551879,1760082175584,-500.0,0.00016438,2]
[390551880,1760082175609,-500.0,0.00016438,2]
[390551881,1760082175633,-504.39754967,0.00016438,2]
[390551882,1760082175657,-500.0,0.00016438,2]
[390551883,1760082175679,-500.0,0.00016438,2]
[390551884,1760082175701,-500.0,0.00016438,2]
[390551885,1760082175724,-500.0,0.00016438,2]
[390551886,1760082175747,-500.0,0.00016438,2]
[390551887,1760082175770,-500.0,0.00016438,2]
[390551888,1760082175794,-500.0,0.00016438,2]
[390551889,1760082175822,-500.0,0.00016438,2]
[390551890,1760082175845,-500.0,0.00016438,2]
[390551891,1760082175869,-500.0,0.00016438,2]
[390551892,1760082175892,-500.0,0.00016438,2]
[390551893,1760082175915,-500.0,0.00016438,2]
[390551894,1760082175937,-500.0,0.00016438,2]
[390551895,1760082175961,-231.24650915,0.00016438,2]
[390551896,1760082175984,-500.0,0.00016438,2]
[390551897,1760082176008,-500.0,0.00016438,2]
[390551898,1760082176032,-500.0,0.00016438,2]
[390551899,1760082176056,-500.0,0.00016438,2]
[390551900,1760082176079,-500.0,0.00016438,2]
[390551901,1760082176104,-500.0,0.00016438,2]
[390551902,1760082176128,-500.0,0.00016438,2]
[390551903,1760082176151,-500.0,0.00016438,2]
[390551904,1760082176174,-500.0,0.00016438,2]
[390551905,1760082176196,-500.0,0.00016438,2]
[390551906,1760082176220,-500.0,0.00016438,2]
[390551907,1760082176243,-500.0,0.00016438,2]
[390551908,1760082176269,-500.0,0.00016438,2]
[390551909,1760082176294,-500.0,0.00016438,2]
[390551910,1760082176321,-500.0,0.00016438,2]
[390551911,1760082176345,-628.20353952,0.00016438,2]
[390551912,1760082176372,-500.0,0.00016438,2]
[390551913,1760082176396,-500.0,0.00016438,2]
[390551914,1760082176420,-500.0,0.00016438,2]
[390551915,1760082176443,-500.0,0.00016438,2]
[390551916,1760082176468,-431.1009717,0.00016438,2]
[390551917,1760082176490,-500.0,0.00016438,2]
[390551918,1760082176512,-500.0,0.00016438,2]
[390551919,1760082176535,-500.0,0.00016438,2]
[390551920,1760082176558,-500.0,0.00016438,2]
[390551921,1760082176582,-500.0,0.00016438,2]
[390551922,1760082176605,-500.0,0.00016438,2]
[390551923,1760082176631,-500.0,0.00016438,2]
[390551924,1760082176656,-500.0,0.00016438,2]
[390551925,1760082176679,-500.0,0.00016438,2]
[390551926,1760082176871,-500.0,0.00016438,2]
[390551927,1760082176897,-500.0,0.00016438,2]
[390551928,1760082176920,-500.0,0.00016438,2]
[390551929,1760082176943,-482.27098122,0.00016438,2]
[390551930,1760082176966,-500.0,0.00016438,2]
[390551931,1760082176990,-500.0,0.00016438,2]
[390551932,1760082177014,-500.0,0.00016438,2]
[390551933,1760082177038,-500.0,0.00016438,2]
[390551934,1760082177062,-500.0,0.00016438,2]
[390551935,1760082177086,-500.86317803,0.00016438,2]
[390551936,1760082177112,-501.39167991,0.00016438,2]
[390551937,1760082177138,-500.0,0.00016438,2]
[390551938,1760082177161,-500.0,0.00016438,2]
[390551939,1760082177184,-500.0,0.00016438,2]
[390551940,1760082177208,-500.0,0.00016438,2]
[390551941,1760082177230,-500.0,0.00016438,2]
[390551942,1760082177253,-894.98,0.00016438,2]
[390551943,1760082177285,-500.0,0.00016438,2]
[390551944,1760082177310,-500.0,0.00016438,2]
[390551945,1760082177333,-500.0,0.00016438,2]
[390551946,1760082177357,-500.0,0.00016438,2]
[390551947,1760082177381,-1125.23,0.00016438,2]
[390551948,1760082177404,-500.0,0.00016438,2]
[390551949,1760082177428,-500.0,0.00016438,2]
[390551950,1760082177450,-500.0,0.00016438,2]
[390551951,1760082177474,-500.0,0.00016438,2]
[390551952,1760082177496,-500.0,0.00016438,2]
[390551953,1760082177520,-502.25975422,0.00016438,2]
[390551954,1760082177544,-501.79744955,0.00016438,2]
[390551955,1760082177569,-500.0,0.00016438,2]
[390551956,1760082177592,-501.72722017,0.00016438,2]
[390551957,1760082177617,-500.0,0.00016438,2]
[390551958,1760082177641,-500.0,0.00016438,2]
[390551959,1760082177663,-500.33800412,0.00016438,2]
[390551960,1760082177686,-500.0,0.00016438,2]
[390551961,1760082177710,-500.0,0.00016438,2]
[390551962,1760082177733,-500.0,0.00016438,2]
[390551963,1760082177756,-500.0,0.00016438,2]
[390551964,1760082177780,-500.0,0.00016438,2]
[390551965,1760082177803,-500.0,0.00016438,2]
[390551966,1760082177826,-500.0,0.00016438,2]
[390551967,1760082177853,-500.0,0.00016438,2]
[390551968,1760082177878,-330.59506078,0.00016438,2]
[390551969,1760082177902,-500.0,0.00016438,2]
[390551970,1760082177927,-500.0,0.00016438,2]
[390551971,1760082177951,-500.0,0.00016438,2]
[390551972,1760082177975,-501.12466354,0.00016438,2]
[390551973,1760082177999,-500.0,0.00016438,2]
[390551974,1760082178024,-500.0,0.00016438,2]
[390551975,1760082178050,-500.0,0.00016438,2]
[390551976,1760082178074,-500.0,0.00016438,2]
[390551977,1760082178100,-1332.98,0.00016438,2]
[390551978,1760082178123,-500.0,0.00016438,2]
[390551979,1760082178145,-359.37702675,0.00016438,2]
[390551980,1760082178167,-500.0,0.00016438,2]
[390551981,1760082178190,-501.20554568,0.00016438,2]
[390551982,1760082178212,-500.0,0.00016438,2]
[390551983,1760082178235,-500.0,0.00016438,2]
[390551984,1760082178257,-151.0,0.00016438,2]
[390551985,1760082178282,-500.0,0.00016438,2]
[390551986,1760082178309,-501.84305985,0.00016438,2]
[390551987,1760082178332,-501.1244368,0.00016438,2]
[390551988,1760082178355,-500.0,0.00016438,2]
[390551989,1760082178379,-500.0,0.00016438,2]
[390551990,1760082178403,-500.0,0.00016438,2]
[390551991,1760082178427,-502.29888454,0.00016438,2]
[390551992,1760082178451,-1000.0,0.00016438,2]
[390551993,1760082178474,-501.75442674,0.00016438,2]
[390551994,1760082178499,-500.0,0.00016438,2]
[390551995,1760082178522,-500.0,0.00016438,2]
[390551996,1760082178546,-500.0,0.00016438,2]
[390551997,1760082178570,-500.0,0.00016438,2]
[390551998,1760082178594,-500.0,0.00016438,2]
[390551999,1760082178617,-501.81410703,0.00016438,2]
[390552000,1760082178640,-500.0,0.00016438,2]
[390552001,1760082178662,-502.054766,0.00016438,2]
[390552002,1760082178685,-501.1665511,0.00016438,2]
[390552003,1760082178707,-500.0,0.00016438,2]
[390552004,1760082178728,-501.28531194,0.00016438,2]
[390552005,1760082178751,-500.0,0.00016438,2]
[390552006,1760082178776,-500.0,0.00016438,2]
[390552007,1760082178802,-500.0,0.00016438,2]
[390552008,1760082178825,-500.0,0.00016438,2]
[390552009,1760082178849,-502.86859448,0.00016438,2]
[390552010,1760082178874,-521.22658531,0.00016438,3]
[390552011,1760082178898,-500.0,0.00016438,2]
[390552012,1760082178924,-500.0,0.00016438,2]
[390552013,1760082178947,-500.0,0.00016438,2]
[390552014,1760082178971,-500.0,0.00016438,2]
[390552015,1760082178993,-500.0,0.00016438,2]
[390552016,1760082179016,-500.28715916,0.00016438,2]
[390552017,1760082179041,-500.0,0.00016438,2]
[390552018,1760082179063,-500.0,0.00016438,2]
[390552019,1760082179086,-500.0,0.00016438,2]
[390552020,1760082179110,-500.0,0.00016438,2]
[390552021,1760082179132,-500.0,0.00016438,2]
[390552022,1760082179154,-500.0,0.00016438,2]
[390552023,1760082179177,-502.14845717,0.00016438,2]
[390552024,1760082179199,-500.87353756,0.00016438,2]
[390552025,1760082179222,-500.0,0.00016438,2]
[390552026,1760082179244,-172.68877268,0.00016438,2]
[390552027,1760082179267,-1248.5,0.00016438,2]
[390552028,1760082179289,-500.54182772,0.00016438,2]
[390552029,1760082179316,-500.0,0.00016438,2]
[390552030,1760082179339,-422.07411172,0.00016438,2]
[390552031,1760082179363,-500.0,0.00016438,2]
[390552032,1760082179387,-501.39088506,0.00016438,2]
[390552033,1760082179409,-500.0,0.00016438,2]
[390552034,1760082179433,-500.0,0.00016438,2]
[390552035,1760082179457,-500.0,0.00016438,2]
[390552036,1760082179480,-500.0,0.00016438,2]
[390552037,1760082179502,-500.0,0.00016438,2]
[390552038,1760082179525,-500.0,0.00016438,2]
[390552039,1760082179548,-500.0,0.00016438,2]
[390552040,1760082179570,-7236.72,0.00016438,2]
[390552041,1760082179592,-500.0,0.00016438,2]
[390552042,1760082179615,-185.1934565,0.00016438,2]
[390552043,1760082179638,-567.34,0.00016438,2]
[390552044,1760082179808,-500.0,0.00016438,2]
[390552045,1760082179833,-848.6,0.00016438,2]
[390552046,1760082179858,-790.21,0.00016438,2]
[390552047,1760082179882,-500.0,0.00016438,2]
[390552048,1760082179905,-860.74,0.00016438,2]
[390552049,1760082179927,-488.93264309,0.00016438,2]
[390552050,1760082179951,-500.0,0.00016438,2]
[390552051,1760082179974,-500.0,0.00016438,2]
[390552052,1760082179997,-500.0,0.00016438,2]
[390552053,1760082180019,-500.0,0.00016438,2]
[390552054,1760082180042,-500.0,0.00016438,2]
[390552055,1760082180065,-501.03965201,0.00016438,2]
[390552056,1760082180089,-500.0,0.00016438,2]
[390552057,1760082180112,-500.0,0.00016438,2]
[390552058,1760082180134,-875.94,0.00016438,2]
[390552059,1760082180158,-254.61685965,0.00016438,2]
[390552060,1760082180183,-500.0,0.00016438,2]
[390552061,1760082180207,-500.0,0.00016438,2]
[390552062,1760082180231,-500.0,0.00016438,2]
[390552063,1760082180255,-500.0,0.00016438,2]
[390552064,1760082180278,-500.73956541,0.00016438,2]
[390552065,1760082180302,-500.86748288,0.00016438,2]
[390552066,1760082180329,-500.0,0.00016438,2]
[390552067,1760082180354,-775.14,0.00016438,2]
[390552068,1760082180378,-1214.46,0.00016438,2]
[390552069,1760082180403,-500.0,0.00016438,2]
[390552070,1760082180427,-189.96658066,0.00016438,2]
[390552071,1760082180450,-500.0,0.00016438,2]
[390552072,1760082180475,-500.0,0.00016438,2]
[390552073,1760082180499,-500.0,0.00016438,2]
[390552074,1760082180523,-151.0,0.00016438,2]
[390552075,1760082180546,-500.0,0.00016438,2]
[390552076,1760082180570,-500.0,0.00016438,2]
[390552077,1760082180594,-500.0,0.00016438,2]
[390552078,1760082180619,-500.0,0.00016438,2]
[390552079,1760082180643,-509.80328601,0.00016438,2]
[390552080,1760082180667,-501.93253675,0.00016438,2]
[390552081,1760082180692,-1111.51,0.00016438,2]
[390552082,1760082180720,-698.81,0.00016438,2]
[390552083,1760082180744,-500.0,0.00016438,2]
[390552084,1760082180768,-500.0,0.00016438,2]
[390552085,1760082180792,-500.0,0.00016438,2]
[390552086,1760082180816,-500.0,0.00016438,2]
[390552087,1760082180841,-500.0,0.00016438,2]
[390552088,1760082180865,-500.0,0.00016438,2]
[390552089,1760082180890,-500.0,0.00016438,2]
[390552090,1760082180915,-500.0,0.00016438,2]
[390552091,1760082180941,-500.0,0.00016438,2]
[390552092,1760082180966,-500.0,0.00016438,2]
[390552093,1760082180990,-500.0,0.00016438,2]
[390552094,1760082181014,-500.0,0.00016438,2]
[390552095,1760082181039,-502.33088566,0.00016438,2]
[390552096,1760082181064,-500.0,0.00016438,2]
[390552097,1760082181089,-500.0,0.00016438,2]
[390552098,1760082181114,-500.0,0.00016438,2]
[390552099,1760082181139,-500.0,0.00016438,2]
[390552100,1760082181163,-500.0,0.00016438,2]
[390552101,1760082181186,-500.0,0.00016438,2]
[390552102,1760082181211,-663.03,0.00016438,2]
[390552103,1760082181235,-383.04627743,0.00016438,2]
[390552104,1760082181260,-502.17725709,0.00016438,2]
[390552105,1760082181287,-500.0,0.00016438,2]
[390552106,1760082181315,-500.0,0.00016438,2]
[390552107,1760082181339,-500.0,0.00016438,2]
[390552108,1760082181363,-500.0,0.00016438,2]
[390552109,1760082181388,-500.0,0.00016438,2]
[390552110,1760082181417,-500.0,0.00016438,2]
[390552111,1760082181440,-500.82750566,0.00016438,2]
[390552112,1760082181464,-501.70052436,0.00016438,2]
[390552113,1760082181488,-776.66,0.00016438,2]
[390552114,1760082181512,-500.0,0.00016438,2]
[390552115,1760082181536,-500.0,0.00016438,2]
[390552116,1760082181560,-499.57675367,0.00016438,2]
[390552117,1760082181584,-500.0,0.00016438,2]
[390552118,1760082181607,-500.0,0.00016438,2]
[390552119,1760082181631,-864.14,0.00016438,2]
[390552120,1760082181655,-500.0,0.00016438,2]
[390552121,1760082181678,-500.0,0.00016438,2]
[390552122,1760082181701,-500.0,0.00016438,2]
[390552123,1760082181725,-500.0,0.00016438,2]
[390552124,1760082181747,-500.0,0.00016438,2]
[390552125,1760082181768,-1604.57,0.00016438,2]
[390552126,1760082181790,-500.0,0.00016438,2]
[390552127,1760082181814,-500.0,0.00016438,2]
[390552128,1760082181837,-166.6810325,0.00016438,2]
[390552129,1760082181861,-1236.4,0.00016438,2]
[390552130,1760082181884,-501.42469803,0.00016438,2]
[390552131,1760082181907,-500.0,0.00016438,2]
[390552132,1760082181931,-500.0,0.00016438,2]
[390552133,1760082181956,-501.73644491,0.00016438,2]